[Event "*** Titled Tuesday Blitz"]
[Site "Chess.com"]
[Date "2020.12.29"]
[Round "4"]
[White "MasterMK73"]
[Black "WonderChampion"]
[Result "0-1"]
[WhiteElo "2248"]
[BlackElo "2063"]
[TimeControl "180+1"]
[EndTime "10:40:49 PST"]
[Termination "WonderChampion won on time"]

1. e4 {[%clk 0:03:00.9]} 1... c5 {[%clk 0:02:59]} 2. c3 {[%clk 0:02:58.1]} 2...
Nf6 {[%clk 0:02:58.1]} 3. e5 {[%clk 0:02:57.3]} 3... Nd5 {[%clk 0:02:57.2]} 4.
d4 {[%clk 0:02:57]} 4... cxd4 {[%clk 0:02:56.2]} 5. cxd4 {[%clk 0:02:56.4]} 5...
d6 {[%clk 0:02:51.2]} 6. Nf3 {[%clk 0:02:56.4]} 6... Nc6 {[%clk 0:02:48.4]} 7.
Bc4 {[%clk 0:02:48.7]} 7... Nb6 {[%clk 0:02:30.6]} 8. Bb5 {[%clk 0:02:48]} 8...
Bd7 {[%clk 0:02:27.5]} 9. Nc3 {[%clk 0:02:24.7]} 9... g6 {[%clk 0:02:24.1]} 10.
exd6 {[%clk 0:02:17.3]} 10... exd6 {[%clk 0:02:22.5]} 11. O-O {[%clk 0:02:17.9]}
11... Bg7 {[%clk 0:02:19.2]} 12. Re1+ {[%clk 0:02:17.5]} 12... Ne7 {[%clk
0:02:09.6]} 13. Qe2 {[%clk 0:02:14.2]} 13... Bxb5 {[%clk 0:01:51.2]} 14. Nxb5
{[%clk 0:02:08.7]} 14... Nd5 {[%clk 0:01:49.4]} 15. Bg5 {[%clk 0:02:03.8]} 15...
f6 {[%clk 0:01:48.2]} 16. Bh4 {[%clk 0:02:00]} 16... O-O {[%clk 0:01:46.3]} 17.
Qe6+ {[%clk 0:01:57.2]} 17... Kh8 {[%clk 0:01:44.6]} 18. Nxd6 {[%clk 0:01:54.8]}
18... Qb6 {[%clk 0:01:19.1]} 19. Rab1 {[%clk 0:01:26.7]} 19... a5 {[%clk
0:00:46.7]} 20. Nf7+ {[%clk 0:01:23.8]} 20... Kg8 {[%clk 0:00:44.4]} 21. Nd6+
{[%clk 0:01:11.7]} 21... Kh8 {[%clk 0:00:42.1]} 22. Bg3 {[%clk 0:01:04.4]} 22...
a4 {[%clk 0:00:35.6]} 23. Nf7+ {[%clk 0:01:02.5]} 23... Kg8 {[%clk 0:00:33.3]}
24. N7g5+ {[%clk 0:01:01.9]} 24... Kh8 {[%clk 0:00:31]} 25. Qxb6 {[%clk
0:01:00.8]} 25... Nxb6 {[%clk 0:00:29.2]} 26. Ne6 {[%clk 0:01:01.3]} 26... Rf7
{[%clk 0:00:27]} 27. Nxg7 {[%clk 0:00:57.5]} 27... Kxg7 {[%clk 0:00:26.6]} 28.
Bd6 {[%clk 0:00:54.1]} 28... Nf5 {[%clk 0:00:25.9]} 29. Bc5 {[%clk 0:00:53.8]}
29... Nd5 {[%clk 0:00:25.5]} 30. g4 {[%clk 0:00:51.6]} 30... Nfe7 {[%clk
0:00:19.6]} 31. g5 {[%clk 0:00:49.1]} 31... f5 {[%clk 0:00:18.9]} 32. Ne5 {[%clk
0:00:48.1]} 32... Rff8 {[%clk 0:00:18.1]} 33. Nd7 {[%clk 0:00:47.9]} 33... Rfe8
{[%clk 0:00:17.7]} 34. Nf6 {[%clk 0:00:44.6]} 34... Nxf6 {[%clk 0:00:13.2]} 35.
Bxe7 {[%clk 0:00:41.9]} 35... Nd5 {[%clk 0:00:09.5]} 36. Bd6 {[%clk 0:00:41.9]}
36... Kf7 {[%clk 0:00:07.5]} 37. Be5 {[%clk 0:00:40.7]} 37... Ne7 {[%clk
0:00:04.8]} 38. Re3 {[%clk 0:00:39.8]} 38... Nc6 {[%clk 0:00:05.1]} 39. f4
{[%clk 0:00:37.7]} 39... Rad8 {[%clk 0:00:05.4]} 40. Rd1 {[%clk 0:00:35.5]}
40... Nb4 {[%clk 0:00:04]} 41. a3 {[%clk 0:00:31.7]} 41... Nd5 {[%clk
0:00:03.3]} 42. Rc3 {[%clk 0:00:32.1]} 42... Nb6 {[%clk 0:00:03.2]} 43. Rcd3
{[%clk 0:00:33]} 43... Nc4 {[%clk 0:00:02.7]} 44. Rb1 {[%clk 0:00:20.6]} 44...
Nxe5 {[%clk 0:00:02.9]} 45. fxe5 {[%clk 0:00:20.1]} 45... Rxe5 {[%clk 0:00:03]}
46. dxe5 {[%clk 0:00:19.4]} 46... Rxd3 {[%clk 0:00:02.3]} 47. Kf2 {[%clk
0:00:19.4]} 47... Rd2+ {[%clk 0:00:02.3]} 48. Ke3 {[%clk 0:00:18.7]} 48... Rd5
{[%clk 0:00:03]} 49. Kf4 {[%clk 0:00:18.2]} 49... Ke6 {[%clk 0:00:02.4]} 50. Rc1
{[%clk 0:00:15.9]} 50... Rd4+ {[%clk 0:00:02.9]} 51. Ke3 {[%clk 0:00:14.9]}
51... Rd5 {[%clk 0:00:03.5]} 52. Rc7 {[%clk 0:00:14.4]} 52... Rxe5+ {[%clk
0:00:04.1]} 53. Kf3 {[%clk 0:00:14]} 53... Rb5 {[%clk 0:00:04.1]} 54. Rxh7
{[%clk 0:00:13.1]} 54... Rb3+ {[%clk 0:00:04.6]} 55. Kf4 {[%clk 0:00:10.4]}
55... Rxb2 {[%clk 0:00:05.1]} 56. Rh6 {[%clk 0:00:10.4]} 56... Rb3 {[%clk
0:00:05.1]} 57. Rxg6+ {[%clk 0:00:09.8]} 57... Kf7 {[%clk 0:00:05.4]} 58. Rf6+
{[%clk 0:00:09.2]} 58... Kg7 {[%clk 0:00:05.7]} 59. Rxf5 {[%clk 0:00:08.8]}
59... Rxa3 {[%clk 0:00:05.9]} 60. h4 {[%clk 0:00:08.3]} 60... Rb3 {[%clk
0:00:05.7]} 61. Rc5 {[%clk 0:00:07.7]} 61... Rb4+ {[%clk 0:00:05.7]} 62. Kg3
{[%clk 0:00:06.7]} 62... b5 {[%clk 0:00:06.1]} 63. h5 {[%clk 0:00:03.9]} 63...
a3 {[%clk 0:00:06.4]} 64. Rc7+ {[%clk 0:00:03.8]} 64... Kg8 {[%clk 0:00:05.6]}
65. Rc1 {[%clk 0:00:03.9]} 65... Rb3+ {[%clk 0:00:05.6]} 66. Kf4 {[%clk
0:00:03.7]} 66... b4 {[%clk 0:00:05.5]} 67. Kf5 {[%clk 0:00:03.6]} 67... a2
{[%clk 0:00:05.5]} 68. Kg6 {[%clk 0:00:03.5]} 68... Kf8 {[%clk 0:00:03.8]} 69.
h6 {[%clk 0:00:03]} 69... Rb1 {[%clk 0:00:02.5]} 70. h7 {[%clk 0:00:02.4]} 70...
a1=Q {[%clk 0:00:01.6]} 0-1

[Event "*** Titled Tuesday Blitz"]
[Site "Chess.com"]
[Date "2020.12.29"]
[Round "4"]
[White "NeverW84M8"]
[Black "XDPS"]
[Result "0-1"]
[WhiteElo "2501"]
[BlackElo "2719"]
[TimeControl "180+1"]
[EndTime "10:40:58 PST"]
[Termination "XDPS won by resignation"]

1. d4 {[%clk 0:03:00.9]} 1... d5 {[%clk 0:02:59.7]} 2. c4 {[%clk 0:03:01]} 2...
e6 {[%clk 0:03:00.2]} 3. Nc3 {[%clk 0:03:01.2]} 3... Nf6 {[%clk 0:02:59.8]} 4.
cxd5 {[%clk 0:03:01.6]} 4... exd5 {[%clk 0:03:00.7]} 5. Bg5 {[%clk 0:03:01.8]}
5... c6 {[%clk 0:03:00.2]} 6. e3 {[%clk 0:03:01.9]} 6... h6 {[%clk 0:03:00.8]}
7. Bf4 {[%clk 0:02:54.9]} 7... Bd6 {[%clk 0:03:01]} 8. Nge2 {[%clk 0:02:51.4]}
8... O-O {[%clk 0:02:51.9]} 9. Qc2 {[%clk 0:02:47.8]} 9... Re8 {[%clk
0:02:51.5]} 10. h3 {[%clk 0:02:42.7]} 10... a5 {[%clk 0:02:49.3]} 11. g4 {[%clk
0:02:42]} 11... Na6 {[%clk 0:02:48.3]} 12. a3 {[%clk 0:02:41.4]} 12... Nc7
{[%clk 0:02:48.1]} 13. Bg2 {[%clk 0:02:36]} 13... Ne6 {[%clk 0:02:45.4]} 14.
Bxd6 {[%clk 0:02:35.2]} 14... Qxd6 {[%clk 0:02:46.3]} 15. O-O {[%clk 0:02:31.1]}
15... Ng5 {[%clk 0:02:45]} 16. Ng3 {[%clk 0:02:29.5]} 16... Rxe3 {[%clk
0:02:28.5]} 17. fxe3 {[%clk 0:01:51.9]} 17... Qxg3 {[%clk 0:02:27.1]} 18. Kh1
{[%clk 0:01:52.4]} 18... Nxh3 {[%clk 0:02:26.4]} 19. Rf3 {[%clk 0:01:52.1]}
19... Qxg4 {[%clk 0:01:36.9]} 20. Rxh3 {[%clk 0:01:49.5]} 20... Qg5 {[%clk
0:01:36.9]} 21. Qf2 {[%clk 0:01:39.2]} 21... Bxh3 {[%clk 0:01:35.2]} 22. Bxh3
{[%clk 0:01:38.8]} 22... Re8 {[%clk 0:01:34.2]} 23. Re1 {[%clk 0:01:34.5]} 23...
Qh5 {[%clk 0:01:22.3]} 24. Kg2 {[%clk 0:01:31.6]} 24... Qg6+ {[%clk 0:01:14.4]}
25. Qg3 {[%clk 0:01:27.8]} 25... Qd3 {[%clk 0:01:10.7]} 26. Qf3 {[%clk 0:01:18]}
26... Qg6+ {[%clk 0:00:58.7]} 27. Kf2 {[%clk 0:01:08]} 27... Kf8 {[%clk
0:00:31.3]} 28. Bf5 {[%clk 0:01:06.9]} 28... Qg5 {[%clk 0:00:29.7]} 29. Rg1
{[%clk 0:01:01]} 29... Qh4+ {[%clk 0:00:21.2]} 30. Qg3 {[%clk 0:01:00.9]} 30...
Qxg3+ {[%clk 0:00:20.4]} 31. Rxg3 {[%clk 0:01:00.2]} 31... g6 {[%clk 0:00:20.7]}
32. Bd3 {[%clk 0:00:54.6]} 32... h5 {[%clk 0:00:20.7]} 33. Ne2 {[%clk
0:00:50.5]} 33... Ng4+ {[%clk 0:00:20.9]} 34. Kg1 {[%clk 0:00:45.9]} 34... Nxe3
{[%clk 0:00:20.8]} 35. Nf4 {[%clk 0:00:43.4]} 35... Ng4 {[%clk 0:00:21]} 36. Rf3
{[%clk 0:00:37.6]} 36... Kg7 {[%clk 0:00:19.7]} 37. Ng2 {[%clk 0:00:31]} 37...
f5 {[%clk 0:00:17.6]} 38. Bf1 {[%clk 0:00:26.3]} 38... Kf6 {[%clk 0:00:16.9]}
39. Nf4 {[%clk 0:00:22.3]} 39... h4 {[%clk 0:00:16.3]} 40. Ng2 {[%clk
0:00:20.7]} 40... g5 {[%clk 0:00:13.8]} 41. Bd3 {[%clk 0:00:20.4]} 41... Nh6
{[%clk 0:00:14.2]} 42. Ne3 {[%clk 0:00:19.1]} 42... f4 {[%clk 0:00:13.8]} 43.
Ng2 {[%clk 0:00:17.4]} 43... Re7 {[%clk 0:00:07.7]} 44. Kh2 {[%clk 0:00:11.7]}
44... Ng4+ {[%clk 0:00:06.5]} 45. Kh3 {[%clk 0:00:10.3]} 45... Nh6 {[%clk
0:00:06.4]} 46. Rf2 {[%clk 0:00:08.3]} 46... Nf7 {[%clk 0:00:05.2]} 47. Nxf4
{[%clk 0:00:08.2]} 47... gxf4 {[%clk 0:00:04.7]} 48. Rxf4+ {[%clk 0:00:09.1]}
48... Ke6 {[%clk 0:00:02.9]} 49. Kxh4 {[%clk 0:00:08.6]} 49... Kd6 {[%clk
0:00:03]} 50. Rf6+ {[%clk 0:00:08.3]} 50... Kc7 {[%clk 0:00:03.4]} 51. Bf5
{[%clk 0:00:08.7]} 51... Nd6 {[%clk 0:00:03.7]} 52. Bg4 {[%clk 0:00:08.6]} 52...
Re4 {[%clk 0:00:03.3]} 53. Kg5 {[%clk 0:00:06.9]} 53... Rxd4 {[%clk 0:00:03.6]}
54. Rh6 {[%clk 0:00:07.4]} 54... Ne4+ {[%clk 0:00:03.9]} 55. Kf5 {[%clk
0:00:04.6]} 55... Rd2 {[%clk 0:00:04.2]} 56. Rh7+ {[%clk 0:00:04.3]} 56... Kb6
{[%clk 0:00:04.8]} 57. Ke5 {[%clk 0:00:04.8]} 57... Rxb2 {[%clk 0:00:05.2]} 58.
Bc8 {[%clk 0:00:05.4]} 58... Nc5 {[%clk 0:00:05.8]} 59. Kd6 {[%clk 0:00:05.5]}
59... Rg2 {[%clk 0:00:05]} 60. Rh1 {[%clk 0:00:03.3]} 60... Rg6+ {[%clk
0:00:05.3]} 61. Ke5 {[%clk 0:00:04]} 61... Kc7 {[%clk 0:00:05.1]} 62. Bf5 {[%clk
0:00:03.6]} 62... Rg7 {[%clk 0:00:05.1]} 63. Kf6 {[%clk 0:00:03.8]} 63... Rg2
{[%clk 0:00:04.3]} 64. Rc1 {[%clk 0:00:04.7]} 64... Kd6 {[%clk 0:00:04.3]} 65.
Re1 {[%clk 0:00:04.4]} 65... Rf2 {[%clk 0:00:04.7]} 66. Re8 {[%clk 0:00:04.5]}
66... Ne4+ {[%clk 0:00:04.6]} 67. Kg6 {[%clk 0:00:05.2]} 67... Nc5 {[%clk
0:00:04.8]} 68. Rd8+ {[%clk 0:00:05.4]} 68... Kc7 {[%clk 0:00:05.4]} 69. Rg8
{[%clk 0:00:05.6]} 69... b5 {[%clk 0:00:05.7]} 70. Rg7+ {[%clk 0:00:06.3]} 70...
Kb6 {[%clk 0:00:06.1]} 71. Bc8 {[%clk 0:00:06.8]} 71... b4 {[%clk 0:00:06.3]}
72. axb4 {[%clk 0:00:06.9]} 72... axb4 {[%clk 0:00:07.2]} 73. Rh7 {[%clk
0:00:06.7]} 73... Rg2+ {[%clk 0:00:07.7]} 74. Kf5 {[%clk 0:00:06.5]} 74... b3
{[%clk 0:00:08.2]} 75. Ke5 {[%clk 0:00:07.1]} 75... Re2+ {[%clk 0:00:08.1]} 76.
Kd4 {[%clk 0:00:07.3]} 76... b2 {[%clk 0:00:08.4]} 77. Bf5 {[%clk 0:00:07.4]}
77... Ne4 {[%clk 0:00:07.9]} 78. Rh1 {[%clk 0:00:07.4]} 78... Ng3 {[%clk
0:00:07.5]} 79. Rb1 {[%clk 0:00:04.6]} 79... Nxf5+ {[%clk 0:00:07.7]} 80. Kd3
{[%clk 0:00:05.5]} 80... Rh2 {[%clk 0:00:08]} 81. Kc3 {[%clk 0:00:05.2]} 81...
c5 {[%clk 0:00:08.3]} 82. Rxb2+ {[%clk 0:00:05.5]} 82... Rxb2 {[%clk 0:00:09.2]}
83. Kxb2 {[%clk 0:00:06.4]} 83... c4 {[%clk 0:00:09.9]} 0-1

[Event "*** Titled Tuesday Blitz"]
[Site "Chess.com"]
[Date "2020.12.29"]
[Round "4"]
[White "Snowflake"]
[Black "Nils_03"]
[Result "0-1"]
[WhiteElo "2433"]
[BlackElo "2245"]
[TimeControl "180+1"]
[EndTime "10:41:01 PST"]
[Termination "Nils_03 won by checkmate"]

1. b3 {[%clk 0:02:57.4]} 1... a5 {[%clk 0:02:58.1]} 2. Bb2 {[%clk 0:02:58.3]}
2... a4 {[%clk 0:02:58]} 3. h4 {[%clk 0:02:57.7]} 3... e6 {[%clk 0:02:53.8]} 4.
h5 {[%clk 0:02:57.5]} 4... h6 {[%clk 0:02:52.2]} 5. g3 {[%clk 0:02:56.3]} 5...
Nf6 {[%clk 0:02:48.8]} 6. Bg2 {[%clk 0:02:56.4]} 6... a3 {[%clk 0:02:48.5]} 7.
Bc3 {[%clk 0:02:53.4]} 7... d5 {[%clk 0:02:45]} 8. Nf3 {[%clk 0:02:40.8]} 8...
c5 {[%clk 0:02:43.9]} 9. d3 {[%clk 0:02:40]} 9... Nc6 {[%clk 0:02:40.8]} 10. Bd2
{[%clk 0:02:36.9]} 10... b5 {[%clk 0:02:37.1]} 11. Qc1 {[%clk 0:02:23.6]} 11...
b4 {[%clk 0:02:34]} 12. c4 {[%clk 0:02:22.2]} 12... Bb7 {[%clk 0:02:26.9]} 13.
Bf4 {[%clk 0:02:14.6]} 13... Bd6 {[%clk 0:02:21.9]} 14. Nbd2 {[%clk 0:02:10.5]}
14... Bxf4 {[%clk 0:02:20.6]} 15. gxf4 {[%clk 0:02:11.4]} 15... Qd6 {[%clk
0:02:12.5]} 16. Nf1 {[%clk 0:02:10.4]} 16... O-O {[%clk 0:02:07.1]} 17. Ng3
{[%clk 0:02:09.9]} 17... dxc4 {[%clk 0:01:59.3]} 18. dxc4 {[%clk 0:01:57.3]}
18... Nd4 {[%clk 0:01:49.9]} 19. Nh4 {[%clk 0:01:56.9]} 19... Bxg2 {[%clk
0:01:47.4]} 20. Nxg2 {[%clk 0:01:57.8]} 20... Rad8 {[%clk 0:01:33.6]} 21. e3
{[%clk 0:01:40]} 21... Nf3+ {[%clk 0:01:19.4]} 22. Ke2 {[%clk 0:01:38.2]} 22...
Qc6 {[%clk 0:01:16.1]} 23. Rd1 {[%clk 0:01:20.2]} 23... Nh2 {[%clk 0:00:49.7]}
24. Nh4 {[%clk 0:01:06.8]} 24... Nhg4 {[%clk 0:00:33.2]} 25. f3 {[%clk
0:00:40.2]} 25... Nh2 {[%clk 0:00:13.6]} 26. Rh1 {[%clk 0:00:23.9]} 26... Qd7
{[%clk 0:00:12]} 27. Rxh2 {[%clk 0:00:20.2]} 27... Qd3+ {[%clk 0:00:11.6]} 28.
Kf2 {[%clk 0:00:20.4]} 28... Qd2+ {[%clk 0:00:09]} 29. Qxd2 {[%clk 0:00:19]}
29... Rxd2+ {[%clk 0:00:09.9]} 30. Kg1 {[%clk 0:00:19.9]} 30... Rxh2 {[%clk
0:00:10]} 31. Kxh2 {[%clk 0:00:20.8]} 31... Rd8 {[%clk 0:00:10.5]} 32. Re1
{[%clk 0:00:10.8]} 32... Rd3 {[%clk 0:00:07.2]} 33. Re2 {[%clk 0:00:09.9]} 33...
Rd1 {[%clk 0:00:05.8]} 34. Kg2 {[%clk 0:00:09.4]} 34... Kh7 {[%clk 0:00:06.2]}
35. Kf2 {[%clk 0:00:09.3]} 35... g6 {[%clk 0:00:06.8]} 36. hxg6+ {[%clk
0:00:09]} 36... fxg6 {[%clk 0:00:07.7]} 37. Ng2 {[%clk 0:00:08.7]} 37... h5
{[%clk 0:00:07.4]} 38. Ne4 {[%clk 0:00:08.5]} 38... Nxe4+ {[%clk 0:00:06.8]} 39.
fxe4 {[%clk 0:00:09.4]} 39... Ra1 {[%clk 0:00:07.3]} 40. Nh4 {[%clk 0:00:08.5]}
40... Kg7 {[%clk 0:00:07.2]} 41. Nf3 {[%clk 0:00:08.8]} 41... Kf6 {[%clk
0:00:07.5]} 42. Ne5 {[%clk 0:00:07.7]} 42... Rh1 {[%clk 0:00:06.9]} 43. Kg2
{[%clk 0:00:04.6]} 43... Rb1 {[%clk 0:00:07.5]} 44. Nd3 {[%clk 0:00:01.9]} 44...
g5 {[%clk 0:00:07.4]} 45. Nxc5 {[%clk 0:00:02.5]} 45... g4 {[%clk 0:00:06.9]}
46. Nd3 {[%clk 0:00:02.5]} 46... h4 {[%clk 0:00:06.9]} 47. Kh2 {[%clk
0:00:02.8]} 47... h3 {[%clk 0:00:06.6]} 48. Kg3 {[%clk 0:00:02.9]} 48... Rg1+
{[%clk 0:00:05.8]} 49. Kh2 {[%clk 0:00:03.4]} 49... Rb1 {[%clk 0:00:05.3]} 50.
Nf2 {[%clk 0:00:03.6]} 50... Rb2 {[%clk 0:00:05.5]} 51. Kg3 {[%clk 0:00:01.6]}
51... Rxe2 {[%clk 0:00:05.5]} 52. Nxg4+ {[%clk 0:00:02.5]} 52... Ke7 {[%clk
0:00:04.4]} 53. Kxh3 {[%clk 0:00:03.4]} 53... Rxa2 {[%clk 0:00:05]} 54. Ne5
{[%clk 0:00:04.3]} 54... Rb2 {[%clk 0:00:05.9]} 55. Nc6+ {[%clk 0:00:04.6]}
55... Kd6 {[%clk 0:00:05.4]} 56. Nxb4 {[%clk 0:00:05.5]} 56... a2 {[%clk
0:00:06.3]} 57. Nxa2 {[%clk 0:00:05.7]} 57... Rxa2 {[%clk 0:00:07.2]} 58. Kg4
{[%clk 0:00:04.5]} 58... Rb2 {[%clk 0:00:06.8]} 59. Kf3 {[%clk 0:00:05]} 59...
Rxb3 {[%clk 0:00:07.1]} 60. e5+ {[%clk 0:00:05.6]} 60... Kc5 {[%clk 0:00:07]}
61. Ke4 {[%clk 0:00:06.5]} 61... Rc3 {[%clk 0:00:07]} 62. Kf3 {[%clk 0:00:01.2]}
62... Rxc4 {[%clk 0:00:07.9]} 63. Kg4 {[%clk 0:00:01.4]} 63... Kd5 {[%clk
0:00:07.9]} 64. Kg5 {[%clk 0:00:01.1]} 64... Re4 {[%clk 0:00:07.9]} 65. Kf6
{[%clk 0:00:02]} 65... Rxe3 {[%clk 0:00:08.3]} 66. Kg5 {[%clk 0:00:01.5]} 66...
Re4 {[%clk 0:00:08.5]} 67. Kf6 {[%clk 0:00:02.4]} 67... Rxf4+ {[%clk 0:00:08.9]}
68. Kg5 {[%clk 0:00:03.3]} 68... Re4 {[%clk 0:00:09.8]} 69. Kf6 {[%clk
0:00:04.2]} 69... Rxe5 {[%clk 0:00:10.7]} 70. Ke7 {[%clk 0:00:04.6]} 70... Re1
{[%clk 0:00:11.6]} 71. Ke8 {[%clk 0:00:05.5]} 71... e5 {[%clk 0:00:12.5]} 72.
Ke7 {[%clk 0:00:06.4]} 72... e4 {[%clk 0:00:13.4]} 73. Kd7 {[%clk 0:00:06.9]}
73... e3 {[%clk 0:00:14.3]} 74. Kc7 {[%clk 0:00:07.8]} 74... e2 {[%clk
0:00:15.2]} 75. Kb7 {[%clk 0:00:08.7]} 75... Rd1 {[%clk 0:00:16]} 76. Kb8 {[%clk
0:00:09.6]} 76... e1=Q {[%clk 0:00:15.9]} 77. Kc8 {[%clk 0:00:10.5]} 77... Qc3+
{[%clk 0:00:16]} 78. Kd8 {[%clk 0:00:11.4]} 78... Kc4+ {[%clk 0:00:16.1]} 79.
Ke8 {[%clk 0:00:12.3]} 79... Qe1+ {[%clk 0:00:15.8]} 80. Kf7 {[%clk 0:00:13.2]}
80... Qe2 {[%clk 0:00:15.9]} 81. Kg8 {[%clk 0:00:12.9]} 81... Rf1 {[%clk
0:00:16.8]} 82. Kh7 {[%clk 0:00:13.8]} 82... Qg2 {[%clk 0:00:16.6]} 83. Kh6
{[%clk 0:00:01.1]} 83... Rh1# {[%clk 0:00:17.5]} 0-1

[Event "*** Titled Tuesday Blitz"]
[Site "Chess.com"]
[Date "2020.12.29"]
[Round "4"]
[White "Dynamikus"]
[Black "serena-maria"]
[Result "1/2-1/2"]
[WhiteElo "2723"]
[BlackElo "2384"]
[TimeControl "180+1"]
[EndTime "10:41:17 PST"]
[Termination "Game drawn by stalemate"]

1. e4 {[%clk 0:03:00.9]} 1... c5 {[%clk 0:02:55.2]} 2. Nf3 {[%clk 0:02:59.4]}
2... d6 {[%clk 0:02:55.2]} 3. d4 {[%clk 0:02:54.6]} 3... cxd4 {[%clk 0:02:56.1]}
4. Nxd4 {[%clk 0:02:55]} 4... Nf6 {[%clk 0:02:55.9]} 5. Nc3 {[%clk 0:02:54.4]}
5... g6 {[%clk 0:02:56.1]} 6. Be2 {[%clk 0:02:51.9]} 6... Bg7 {[%clk 0:02:56]}
7. O-O {[%clk 0:02:52.6]} 7... O-O {[%clk 0:02:56.3]} 8. Nb3 {[%clk 0:02:53.3]}
8... Nc6 {[%clk 0:02:56.3]} 9. Re1 {[%clk 0:02:54]} 9... Be6 {[%clk 0:02:54.1]}
10. Bg5 {[%clk 0:02:54.5]} 10... Na5 {[%clk 0:02:51]} 11. Qd2 {[%clk 0:02:51.1]}
11... Rc8 {[%clk 0:02:34]} 12. Bf1 {[%clk 0:02:33.3]} 12... Nc4 {[%clk
0:02:25.2]} 13. Bxc4 {[%clk 0:02:30.5]} 13... Rxc4 {[%clk 0:02:25.4]} 14. f3
{[%clk 0:02:21.7]} 14... Qb6+ {[%clk 0:02:19.7]} 15. Kh1 {[%clk 0:02:18]} 15...
Rfc8 {[%clk 0:02:19.1]} 16. Rac1 {[%clk 0:02:18.6]} 16... a6 {[%clk 0:02:10.5]}
17. Nd5 {[%clk 0:02:13.9]} 17... Nxd5 {[%clk 0:01:56.3]} 18. exd5 {[%clk
0:02:14.8]} 18... Bf5 {[%clk 0:01:56.6]} 19. c3 {[%clk 0:02:12.3]} 19... e5
{[%clk 0:01:43.8]} 20. dxe6 {[%clk 0:02:08.8]} 20... Bxe6 {[%clk 0:01:42]} 21.
Rcd1 {[%clk 0:02:03.6]} 21... Ra4 {[%clk 0:01:32.3]} 22. Be3 {[%clk 0:01:49.2]}
22... Qc7 {[%clk 0:01:26.5]} 23. Ra1 {[%clk 0:01:29.1]} 23... Rh4 {[%clk
0:00:52.5]} 24. Bf2 {[%clk 0:01:25]} 24... Ra4 {[%clk 0:00:50.6]} 25. Nd4 {[%clk
0:01:18.8]} 25... Bxa2 {[%clk 0:00:19.4]} 26. b3 {[%clk 0:01:04.9]} 26... Bxb3
{[%clk 0:00:16.7]} 27. Nxb3 {[%clk 0:01:00]} 27... Rxa1 {[%clk 0:00:16.5]} 28.
Nxa1 {[%clk 0:00:46.3]} 28... Bxc3 {[%clk 0:00:16.9]} 29. Qe2 {[%clk 0:00:41.9]}
29... Bxe1 {[%clk 0:00:17]} 30. Bxe1 {[%clk 0:00:42.8]} 30... Qc1 {[%clk
0:00:15.6]} 31. Nb3 {[%clk 0:00:40.2]} 31... Qc4 {[%clk 0:00:14.8]} 32. Qe3
{[%clk 0:00:27.3]} 32... Qf1+ {[%clk 0:00:11.9]} 33. Qg1 {[%clk 0:00:27.9]}
33... Qxg1+ {[%clk 0:00:10.7]} 34. Kxg1 {[%clk 0:00:28.8]} 34... Rc2 {[%clk
0:00:10]} 35. Nd4 {[%clk 0:00:25.5]} 35... Rb2 {[%clk 0:00:07]} 36. Bc3 {[%clk
0:00:23.2]} 36... Rb1+ {[%clk 0:00:07.4]} 37. Kf2 {[%clk 0:00:23]} 37... b5
{[%clk 0:00:08.3]} 38. Ke2 {[%clk 0:00:15]} 38... b4 {[%clk 0:00:08]} 39. Bd2
{[%clk 0:00:15.5]} 39... a5 {[%clk 0:00:06.9]} 40. Kd3 {[%clk 0:00:15.7]} 40...
a4 {[%clk 0:00:04.8]} 41. Kc2 {[%clk 0:00:15.2]} 41... Rg1 {[%clk 0:00:04.9]}
42. Bxb4 {[%clk 0:00:13.8]} 42... Rxg2+ {[%clk 0:00:05.1]} 43. Kd3 {[%clk
0:00:14.4]} 43... Rxh2 {[%clk 0:00:05.1]} 44. Bxd6 {[%clk 0:00:15]} 44... Rh3
{[%clk 0:00:05.2]} 45. Ke3 {[%clk 0:00:13.4]} 45... h5 {[%clk 0:00:05.6]} 46.
Kf2 {[%clk 0:00:12.8]} 46... Rh1 {[%clk 0:00:05.9]} 47. Nb5 {[%clk 0:00:07.9]}
47... Rd1 {[%clk 0:00:05.6]} 48. Ba3 {[%clk 0:00:06.6]} 48... Rd2+ {[%clk
0:00:05.6]} 49. Ke3 {[%clk 0:00:06.2]} 49... Ra2 {[%clk 0:00:06.5]} 50. Be7
{[%clk 0:00:05.6]} 50... Kg7 {[%clk 0:00:06.3]} 51. Nc3 {[%clk 0:00:05.7]} 51...
Rc2 {[%clk 0:00:05.9]} 52. Nxa4 {[%clk 0:00:05.2]} 52... Rc4 {[%clk 0:00:05.6]}
53. Nc5 {[%clk 0:00:04.7]} 53... Rc3+ {[%clk 0:00:05.6]} 54. Kf2 {[%clk
0:00:04.6]} 54... f6 {[%clk 0:00:05.5]} 55. Ne4 {[%clk 0:00:04.4]} 55... Rc2+
{[%clk 0:00:05.9]} 56. Kg3 {[%clk 0:00:04]} 56... Rc6 {[%clk 0:00:06.8]} 57. Ba3
{[%clk 0:00:02.6]} 57... g5 {[%clk 0:00:06.6]} 58. Bb2 {[%clk 0:00:02.4]} 58...
Kg6 {[%clk 0:00:07.2]} 59. Kf2 {[%clk 0:00:02.8]} 59... f5 {[%clk 0:00:06.7]}
60. Nc3 {[%clk 0:00:01.6]} 60... Rb6 {[%clk 0:00:06.7]} 61. Bc1 {[%clk
0:00:01.8]} 61... Rc6 {[%clk 0:00:06.2]} 62. Bd2 {[%clk 0:00:02.2]} 62... h4
{[%clk 0:00:06.5]} 63. Nd5 {[%clk 0:00:02]} 63... Rd6 {[%clk 0:00:05.8]} 64.
Ne7+ {[%clk 0:00:02.2]} 64... Kf7 {[%clk 0:00:05.2]} 65. Bxg5 {[%clk 0:00:01.7]}
65... h3 {[%clk 0:00:04.6]} 66. Nxf5 {[%clk 0:00:02]} 66... Rd5 {[%clk
0:00:04.7]} 67. Nh6+ {[%clk 0:00:01]} 67... Kg6 {[%clk 0:00:04.8]} 68. Bf4
{[%clk 0:00:01.9]} 68... Rh5 {[%clk 0:00:04.4]} 69. Kg1 {[%clk 0:00:01.5]} 69...
Rxh6 {[%clk 0:00:03.1]} 70. Bxh6 {[%clk 0:00:01.2]} 70... Kxh6 {[%clk 0:00:04]}
71. Kh2 {[%clk 0:00:01.9]} 71... Kg5 {[%clk 0:00:04.5]} 72. Kxh3 {[%clk
0:00:02.4]} 72... Kf4 {[%clk 0:00:05.1]} 73. Kg2 {[%clk 0:00:03.3]} 73... Kg5
{[%clk 0:00:05.6]} 74. Kg3 {[%clk 0:00:03.6]} 74... Kf5 {[%clk 0:00:06.3]} 75.
Kf2 {[%clk 0:00:04.5]} 75... Kf4 {[%clk 0:00:06.7]} 76. Ke2 {[%clk 0:00:04.6]}
76... Kf5 {[%clk 0:00:07.2]} 77. Ke3 {[%clk 0:00:04.8]} 77... Ke5 {[%clk
0:00:07.9]} 78. f4+ {[%clk 0:00:05.6]} 78... Kf5 {[%clk 0:00:08.5]} 79. Kf3
{[%clk 0:00:06.5]} 79... Kf6 {[%clk 0:00:09.2]} 80. Ke4 {[%clk 0:00:07.4]} 80...
Ke6 {[%clk 0:00:09.8]} 81. Kf3 {[%clk 0:00:06.6]} 81... Kf5 {[%clk 0:00:10.2]}
82. Kg3 {[%clk 0:00:07.5]} 82... Kg6 {[%clk 0:00:09.8]} 83. Kg4 {[%clk
0:00:08.4]} 83... Kf6 {[%clk 0:00:10.1]} 84. f5 {[%clk 0:00:08.9]} 84... Kf7
{[%clk 0:00:09.9]} 85. Kf4 {[%clk 0:00:09.8]} 85... Kf6 {[%clk 0:00:10.1]} 86.
Kg4 {[%clk 0:00:06.8]} 86... Kf7 {[%clk 0:00:09.4]} 87. Kg5 {[%clk 0:00:07.7]}
87... Kg7 {[%clk 0:00:09.1]} 88. f6+ {[%clk 0:00:06.3]} 88... Kf7 {[%clk
0:00:09.5]} 89. Kf5 {[%clk 0:00:06.6]} 89... Kf8 {[%clk 0:00:09.9]} 90. Ke6
{[%clk 0:00:07.5]} 90... Ke8 {[%clk 0:00:10.2]} 91. f7+ {[%clk 0:00:08.4]} 91...
Kf8 {[%clk 0:00:10.5]} 92. Kf6 {[%clk 0:00:09.3]} 1/2-1/2